bitfinex/quotes_BTCUSD_20240927
["timestamp","ask_amount","ask_price","bid_price","bid_amount"]
[1727442925381,0.00702063,65783.0,65782.0,0.152017]
[1727442928484,0.00702063,65783.0,65782.0,0.152017]
[1727442929359,0.00702063,65783.0,65779.0,0.304046]
[1727442929581,0.00702063,65783.0,65781.0,0.152019]
[1727442929801,0.00202063,65783.0,65781.0,0.152019]
[1727442930015,0.00702063,65783.0,65781.0,0.152019]
[1727442931117,0.00702063,65783.0,65782.0,0.152017]
[1727442931808,0.00702063,65783.0,65782.0,0.00033806]
[1727442932789,0.00702063,65783.0,65782.0,0.00116606]
[1727442933220,0.00702063,65783.0,65782.0,0.15318306]
[1727442933451,0.00702063,65783.0,65782.0,0.00116606]
[1727442933678,0.15903463,65783.0,65782.0,0.00116606]
[1727442936161,0.00702063,65783.0,65782.0,0.15318306]
[1727442936394,0.00702063,65783.0,65782.0,0.00116606]
[1727442936853,0.15903463,65783.0,65782.0,0.00116606]
[1727442937101,0.00702063,65783.0,65782.0,0.00116606]
[1727442937568,0.00702063,65783.0,65782.0,0.15318306]
[1727442937791,0.00702063,65783.0,65782.0,0.00116606]
[1727442938455,0.00702063,65783.0,65782.0,0.15318306]
[1727442938678,0.005,65783.0,65782.0,0.15318306]
[1727442938940,0.00702063,65785.0,65784.0,0.152012]
[1727442940671,0.00802063,65785.0,65784.0,0.152012]
[1727442941737,0.001,65785.0,65784.0,0.152012]
[1727442943659,0.001,65785.0,65784.0,0.15647046]
[1727442946964,0.001,65785.0,65784.0,0.15680852]
[1727442947840,0.001,65785.0,65784.0,0.15235005]
[1727442948733,0.00302063,65785.0,65784.0,0.15235005]
[1727442951176,0.001,65785.0,65784.0,0.15235005]
[1727442958894,0.15503063,65785.0,65784.0,0.00033805]
[1727442959110,0.16003063,65785.0,65784.0,0.00033805]
[1727442959328,0.00802063,65785.0,65784.0,0.00033805]
[1727442959550,0.16003063,65785.0,65784.0,0.00033805]
[1727442960240,0.00802063,65785.0,65784.0,0.00033805]
[1727442961366,0.00802063,65785.0,65784.0,0.15235005]
[1727442961592,0.001,65785.0,65784.0,0.15235005]
[1727442962045,0.001,65785.0,65784.0,0.23499005]
[1727442962945,0.001656,65786.0,65785.0,0.15201]
[1727442963170,0.001656,65786.0,65785.0,0.3487321]
[1727442963404,0.001656,65786.0,65785.0,0.34569232]
[1727442963746,0.001656,65786.0,65785.0,0.3629176]
[1727442964418,0.002656,65786.0,65785.0,0.3629176]
[1727442965320,0.002656,65786.0,65785.0,0.36295847]
[1727442965535,0.002656,65786.0,65785.0,0.34569232]
[1727442965748,0.002656,65786.0,65785.0,0.36296691]
[1727442965960,0.002656,65786.0,65785.0,0.36296796]
[1727442966397,0.003656,65786.0,65785.0,0.36396796]
[1727442966601,0.003656,65786.0,65785.0,0.36396795]
[1727442968617,0.003656,65786.0,65785.0,0.17062284]
[1727442968868,0.003656,65786.0,65785.0,0.15334804]
[1727442969762,0.003656,65786.0,65785.0,0.17063074]
[1727442969984,0.003656,65786.0,65785.0,0.15334804]
[1727442971126,0.003656,65786.0,65785.0,0.17060232]
[1727442971924,0.003656,65786.0,65785.0,0.89135913]
[1727442972164,0.001656,65791.0,65790.0,0.251998]
[1727442972408,0.001656,65791.0,65790.0,0.60898692]
[1727442972668,0.001656,65791.0,65790.0,0.62309671]
[1727442973804,0.002656,65791.0,65790.0,0.62309671]
[1727442974057,0.002656,65791.0,65790.0,0.6230967]
[1727442974058,0.003656,65791.0,65790.0,0.6230967]
[1727442974527,0.003656,65791.0,65790.0,1.3230967]
[1727442974771,0.003656,65791.0,65790.0,1.3280967]
[1727442974998,0.003656,65791.0,65790.0,2.01807499]
[1727442975250,0.003656,65791.0,65790.0,1.34075964]
[1727442975478,0.003656,65791.0,65790.0,1.2727057]
[1727442975703,0.003656,65791.0,65790.0,1.27270569]
[1727442976159,0.003656,65791.0,65790.0,1.34075963]
[1727442976421,0.001656,65796.0,65795.0,0.45531064]
[1727442976660,0.001656,65796.0,65795.0,0.6109366]
[1727442976879,0.001656,65796.0,65795.0,0.62808569]
[1727442977315,0.001656,65796.0,65795.0,0.6279047]
[1727442977762,0.002656,65796.0,65795.0,1.2267187]
[1727442978180,0.002656,65796.0,65795.0,1.7174127]
[1727442978627,0.002656,65796.0,65795.0,1.71741269]
[1727442978853,0.003656,65796.0,65795.0,1.72741269]
[1727442979132,0.002656,65796.0,65795.0,1.33730431]
[1727442979352,0.002656,65796.0,65795.0,0.966704]
[1727442979569,0.003656,65796.0,65795.0,0.975704]
[1727442979785,0.002656,65796.0,65795.0,0.965704]
[1727442980237,0.003656,65796.0,65795.0,0.975704]
[1727442980479,0.003656,65796.0,65795.0,0.275704]
[1727442980705,0.003656,65796.0,65795.0,0.46904827]
[1727442981149,0.003656,65796.0,65795.0,0.69695638]
[1727442981380,0.003656,65796.0,65795.0,0.46904827]
[1727442981867,0.003656,65796.0,65795.0,1.20940921]
[1727442982100,0.003656,65796.0,65795.0,1.19838858]
[1727442982347,0.003656,65796.0,65795.0,0.6243362]
[1727442982563,0.003656,65796.0,65795.0,0.46904826]
[1727442984693,0.003656,65796.0,65795.0,1.16904826]
[1727442989726,0.003656,65796.0,65795.0,0.46904826]
[1727442992642,0.003656,65796.0,65795.0,1.16904826]
[1727442993131,0.003656,65796.0,65795.0,0.97570399]
[1727442994066,0.003656,65796.0,65795.0,1.16904826]
[1727442995305,0.003656,65796.0,65795.0,0.46904826]
[1727442996296,0.003656,65796.0,65795.0,0.6243362]
[1727442996759,0.003656,65796.0,65795.0,1.3243362]
[1727442996979,0.003656,65796.0,65795.0,1.32931556]
[1727442997636,0.003656,65796.0,65795.0,1.33431556]
[1727442997876,0.003656,65796.0,65795.0,1.51207556]
[1727442999050,0.003656,65796.0,65795.0,0.81207556]
[1727443000942,0.001656,65814.0,65813.0,0.34528927]
[1727443001198,0.001656,65814.0,65813.0,0.34562726]
[1727443001656,0.001656,65814.0,65813.0,0.44562726]
[1727443002597,0.001656,65814.0,65813.0,0.44962726]
[1727443002829,0.001656,65814.0,65813.0,0.44562726]
[1727443003257,0.001656,65814.0,65813.0,0.44962726]
[1727443003802,0.001656,65814.0,65813.0,0.44962725]
[1727443004046,0.001656,65814.0,65813.0,0.45362725]
[1727443005345,0.001656,65814.0,65813.0,0.45803344]
[1727443006523,0.001656,65814.0,65813.0,0.26028298]
[1727443006767,0.00367663,65814.0,65813.0,0.00833798]
[1727443007697,0.00867663,65814.0,65813.0,0.00433798]
[1727443008150,0.00867663,65814.0,65813.0,0.00033798]
[1727443010118,0.00867663,65814.0,65813.0,0.15228298]
[1727443010510,0.006656,65814.0,65813.0,0.15228298]
[1727443010881,0.001656,65814.0,65813.0,0.15228298]
[1727443011093,0.00367663,65814.0,65813.0,0.15228298]
[1727443011289,0.00867663,65814.0,65813.0,0.15228298]
[1727443012864,0.00867663,65814.0,65813.0,0.00033798]
[1727443014263,0.00867663,65814.0,65813.0,0.15228298]
[1727443014727,0.00867663,65814.0,65813.0,0.00033798]
[1727443014920,0.00570242,65814.0,65813.0,0.00033798]
[1727443015600,0.00570242,65814.0,65813.0,0.15228298]
[1727443016576,0.00735842,65814.0,65813.0,0.15228298]
[1727443018420,0.00735842,65814.0,65813.0,0.15228297]
[1727443018920,0.001656,65814.0,65813.0,0.34562724]
[1727443019183,0.001656,65814.0,65813.0,0.44562724]
[1727443019651,0.00235842,65814.0,65813.0,0.15228297]
[1727443019883,0.00735842,65814.0,65813.0,0.15228297]
[1727443020829,0.001656,65814.0,65813.0,0.15228297]
[1727443021054,0.001656,65814.0,65813.0,0.25532173]
[1727443021541,0.001656,65814.0,65813.0,0.25228297]
[1727443022013,0.001656,65814.0,65813.0,0.15628297]
[1727443022271,0.00235842,65814.0,65813.0,0.15928297]
[1727443022513,0.00735842,65814.0,65813.0,0.15928297]
[1727443024357,0.00735842,65814.0,65813.0,0.15928296]
[1727443024592,0.00735842,65814.0,65813.0,0.00733796]
[1727443025573,0.00735842,65814.0,65813.0,0.00033796]
[1727443025815,0.00735842,65814.0,65813.0,0.15428296]
[1727443026055,0.00735842,65814.0,65813.0,0.15528296]
[1727443026309,0.00735842,65814.0,65813.0,0.15228296]
[1727443026544,0.00735842,65814.0,65813.0,0.15328296]
[1727443028688,0.001656,65814.0,65813.0,0.15328296]
[1727443028934,0.00735842,65814.0,65813.0,0.15328296]
[1727443029359,0.00735842,65814.0,65813.0,0.15411096]
[1727443031106,0.001656,65814.0,65813.0,0.50391096]
[1727443032026,0.001656,65814.0,65813.0,0.50291096]
[1727443032257,0.001656,65814.0,65813.0,0.50391096]
[1727443032689,0.001656,65814.0,65813.0,0.50991095]
[1727443032915,0.001656,65814.0,65813.0,0.50891095]
[1727443033135,0.001656,65814.0,65813.0,0.51491095]
[1727443033580,0.001656,65814.0,65813.0,0.50891095]
[1727443034228,0.001656,65814.0,65813.0,0.50291095]
[1727443034703,0.001656,65814.0,65813.0,0.51191095]
[1727443035140,0.001656,65814.0,65813.0,0.52091095]
[1727443038523,0.001656,65814.0,65813.0,0.52091094]
[1727443041216,0.001656,65814.0,65813.0,0.52091094]
[1727443041857,0.001656,65814.0,65813.0,0.35311094]
[1727443042965,0.001656,65814.0,65813.0,0.27111094]
[1727443045095,0.00235842,65814.0,65813.0,0.27111094]
[1727443045538,0.00235842,65814.0,65813.0,0.17111094]
[1727443045539,0.00735842,65814.0,65813.0,0.17111094]
[1727443046045,0.00735842,65814.0,65813.0,0.01916594]
[1727443046278,0.15930142,65814.0,65813.0,0.01916594]
[1727443046526,0.33758936,65814.0,65813.0,0.01916594]
[1727443046729,0.57588936,65814.0,65813.0,0.01916594]
[1727443047208,0.66699254,65814.0,65813.0,0.01016594]
[1727443047680,0.66699254,65814.0,65813.0,0.00116594]
[1727443047903,0.57588936,65814.0,65813.0,0.00116594]
[1727443048384,0.66699254,65814.0,65813.0,0.00116594]
[1727443048635,0.57588936,65814.0,65813.0,0.00216594]
[1727443048886,0.66699254,65814.0,65813.0,0.00316594]
[1727443049112,0.66699254,65814.0,65813.0,0.00116594]
[1727443049340,0.64419612,65814.0,65813.0,0.00116594]
[1727443049571,0.64419612,65814.0,65813.0,0.00216594]
[1727443049839,0.66699254,65814.0,65813.0,0.00216594]
[1727443050038,0.66699254,65814.0,65813.0,0.00116594]
[1727443050267,0.66699254,65814.0,65813.0,0.00216594]
[1727443050752,0.57588936,65814.0,65813.0,0.00216594]
[1727443051200,0.57588936,65814.0,65813.0,0.00316594]
[1727443051444,0.66699254,65814.0,65813.0,0.00316594]
[1727443051685,0.57588936,65814.0,65813.0,0.00216594]
[1727443051919,0.57588936,65814.0,65813.0,0.00316594]
[1727443052387,0.64417366,65814.0,65813.0,0.00316594]
[1727443053541,0.57588936,65814.0,65813.0,0.00316594]
[1727443054206,0.57588936,65814.0,65813.0,0.00216594]
[1727443054918,0.57588936,65814.0,65813.0,0.00116594]
[1727443055152,0.00735842,65814.0,65813.0,0.15411094]
[1727443055392,0.00735842,65814.0,65813.0,0.00216594]
[1727443055393,0.31458936,65814.0,65813.0,0.00216594]
[1727443055630,0.16264636,65814.0,65813.0,0.00316594]
[1727443055867,0.31458936,65814.0,65813.0,0.00216594]
[1727443056092,0.31458936,65814.0,65813.0,0.00116594]
[1727443056093,0.16264636,65814.0,65813.0,0.00116594]
[1727443056313,0.33758936,65814.0,65813.0,0.00216594]
[1727443057520,0.26354636,65814.0,65813.0,0.00116594]
[1727443057724,0.26354636,65814.0,65813.0,0.00216594]
[1727443057950,0.41548936,65814.0,65813.0,0.00216594]
[1727443058191,0.26354636,65814.0,65813.0,0.00216594]
[1727443061014,0.26354636,65814.0,65813.0,0.15411094]
[1727443061501,0.18564636,65814.0,65813.0,0.00216594]
[1727443061504,0.18564636,65814.0,65813.0,0.15411094]
[1727443061995,0.18564636,65814.0,65813.0,0.15411093]
[1727443062225,0.18564636,65814.0,65813.0,0.15311093]
[1727443062458,0.18564636,65814.0,65813.0,0.15411093]
[1727443063854,0.18564636,65814.0,65813.0,0.15311093]
[1727443064308,0.18564636,65814.0,65813.0,0.15411093]
[1727443065509,0.18564636,65814.0,65813.0,0.15311093]
[1727443071830,0.00735842,65814.0,65813.0,0.22831093]
[1727443077723,0.001656,65814.0,65813.0,0.22831093]
[1727443077974,0.00735842,65814.0,65813.0,0.22831093]
[1727443078185,0.006656,65814.0,65813.0,0.22831092]
[1727443078406,0.00735842,65814.0,65813.0,0.22831092]
[1727443079063,0.00735842,65814.0,65813.0,0.15311092]
[1727443082190,0.00735842,65814.0,65813.0,0.00116592]
[1727443082448,0.33758936,65814.0,65813.0,0.00116592]
[1727443083934,0.18564636,65814.0,65813.0,0.00116592]
[1727443084369,0.18564636,65814.0,65813.0,0.15311092]
[1727443085021,0.18564636,65814.0,65813.0,0.00116592]
[1727443085521,0.18564636,65814.0,65813.0,0.15311092]
[1727443085998,0.18564636,65814.0,65813.0,0.38101903]
[1727443086218,0.00735842,65814.0,65813.0,0.15311092]
[1727443086902,0.001656,65814.0,65813.0,0.42989391]
[1727443087093,0.001656,65814.0,65813.0,0.42685519]
[1727443088516,0.001656,65814.0,65813.0,0.23751092]
[1727443089822,0.001656,65814.0,65813.0,0.24151092]
[1727443090323,0.00235842,65814.0,65813.0,0.24151092]
[1727443090751,0.00735842,65814.0,65813.0,0.24151092]
[1727443091747,0.00735842,65814.0,65813.0,0.16111092]
[1727443092191,0.03035842,65814.0,65813.0,0.16111092]
[1727443092414,0.18564636,65814.0,65813.0,0.00916592]
[1727443093308,0.2312054,65814.0,65813.0,0.00516592]
[1727443093743,0.3831484,65814.0,65813.0,0.00116592]
[1727443093951,0.2312054,65814.0,65813.0,0.00116592]
[1727443094602,0.23121144,65814.0,65813.0,0.00116592]
[1727443094812,0.18564636,65814.0,65813.0,0.00116592]
[1727443095683,0.18564636,65814.0,65813.0,0.15311092]
[1727443095951,0.18564636,65814.0,65813.0,0.00116592]
[1727443096607,0.25397499,65814.0,65813.0,0.00116592]
[1727443096863,0.5060942,65814.0,65813.0,0.00116592]
[1727443097283,0.41498936,65814.0,65813.0,0.00116592]
[1727443098158,0.33140457,65814.0,65813.0,0.00216592]
[1727443098369,0.41498936,65814.0,65813.0,0.00116592]
[1727443098587,0.48334757,65814.0,65813.0,0.00116592]
[1727443098801,0.50614148,65814.0,65813.0,0.00216592]
[1727443099878,0.41498936,65814.0,65813.0,0.00216592]
[1727443100090,0.41498936,65814.0,65813.0,0.00316592]
[1727443102997,0.26304636,65814.0,65813.0,0.00316592]
[1727443103248,0.2540115,65814.0,65813.0,0.00316592]
[1727443103705,0.2540115,65814.0,65813.0,0.15511092]
[1727443104655,0.20822051,65814.0,65813.0,0.34845518]
[1727443104914,0.16264636,65814.0,65813.0,0.15511091]
[1727443105373,0.16264636,65814.0,65813.0,0.15411091]
[1727443105602,0.00235842,65814.0,65813.0,0.51045518]
[1727443105888,0.001656,65814.0,65813.0,0.69165518]
[1727443106547,0.001656,65814.0,65813.0,0.69065518]
[1727443107258,0.001656,65814.0,65813.0,0.69865518]
[1727443107480,0.001656,65814.0,65813.0,0.51531091]
[1727443107701,0.001656,65814.0,65813.0,0.50531091]
[1727443108154,0.001656,65814.0,65813.0,0.51631091]
[1727443108371,0.001656,65814.0,65813.0,0.70965518]
[1727443108590,0.001656,65814.0,65813.0,0.70165518]
[1727443108815,0.001656,65814.0,65813.0,0.71265518]
[1727443109497,0.001656,65814.0,65813.0,0.71265517]
[1727443110375,0.001656,65814.0,65813.0,0.70165517]
[1727443110623,0.001656,65814.0,65813.0,1.97840211]
[1727443110842,0.001656,65814.0,65813.0,1.13161011]
[1727443111063,0.001656,65814.0,65813.0,0.97920111]
[1727443111327,0.001656,65814.0,65813.0,1.24976111]
[1727443111549,0.001656,65814.0,65813.0,1.19604611]
[1727443111763,0.001656,65814.0,65813.0,1.22004611]
[1727443112205,0.001656,65814.0,65813.0,1.20804611]
[1727443112421,0.001656,65814.0,65813.0,1.22204611]
[1727443112656,0.001656,65814.0,65813.0,1.92204611]
[1727443112869,0.001656,65814.0,65813.0,1.91004611]
[1727443113327,0.001656,65814.0,65813.0,1.92404611]
[1727443113992,0.001656,65814.0,65813.0,1.22404611]
[1727443114435,0.001656,65814.0,65813.0,1.22604611]
[1727443115156,0.001656,65814.0,65813.0,1.23104611]
[1727443115851,0.001656,65814.0,65813.0,1.23534369]
[1727443116093,0.001656,65814.0,65813.0,1.28076372]
[1727443116339,0.001656,65814.0,65813.0,1.23534368]
[1727443116552,0.001656,65814.0,65813.0,1.20734368]
[1727443116767,0.001656,65814.0,65813.0,1.20534368]
[1727443116974,0.001656,65814.0,65813.0,1.22134368]
[1727443117211,0.001656,65814.0,65813.0,1.20734368]
[1727443117880,0.001656,65814.0,65813.0,1.22134368]
[1727443118093,0.001656,65814.0,65813.0,1.23534368]
[1727443118531,0.001656,65814.0,65813.0,1.92134368]
[1727443119248,0.001656,65832.0,65831.0,0.151904]
[1727443119250,0.22956411,65832.0,65831.0,0.251904]
[1727443119487,0.22956411,65832.0,65831.0,0.83521152]
[1727443119740,0.001656,65832.0,65831.0,2.1709401]
[1727443120001,0.001656,65832.0,65831.0,2.0464501]
[1727443120254,0.001656,65832.0,65831.0,1.82870067]
[1727443120702,0.22790811,65847.0,65846.0,0.34521327]
[1727443120924,0.22790811,65847.0,65846.0,0.34555115]
[1727443121151,0.001658,65852.0,65846.0,0.34555115]
[1727443121152,0.00570242,65850.0,65849.0,0.151862]
[1727443121393,0.00570242,65850.0,65849.0,0.34520627]
[1727443123272,0.00570242,65850.0,65849.0,0.151862]
[1727443123540,0.00570242,65850.0,65849.0,0.152862]
[1727443124958,0.00570242,65850.0,65849.0,0.151862]
[1727443125464,0.00735842,65850.0,65849.0,0.151862]
[1727443132345,0.00735842,65850.0,65849.0,0.15219987]
[1727443133658,0.00735842,65850.0,65849.0,0.15219986]
[1727443136040,0.00235842,65850.0,65849.0,0.23219986]
[1727443136271,0.00735842,65850.0,65849.0,0.23219986]
[1727443138251,0.00235842,65850.0,65849.0,0.23219986]
[1727443138456,0.00735842,65850.0,65849.0,0.23219986]
[1727443139088,0.00735842,65850.0,65849.0,0.15219986]
[1727443146637,0.00735842,65850.0,65849.0,0.15219985]
[1727443155096,0.001656,65850.0,65849.0,0.49239985]
[1727443155320,0.001656,65850.0,65849.0,0.61915641]
[1727443156462,0.001656,65850.0,65849.0,0.68549907]
[1727443156878,0.001656,65850.0,65849.0,0.69249907]
[1727443157809,0.001656,65850.0,65849.0,1.39249907]
[1727443158010,0.001656,65850.0,65849.0,1.40389545]
[1727443158665,0.001656,65850.0,65849.0,1.40389544]
[1727443160601,0.001656,65850.0,65849.0,1.40389543]
[1727443160822,0.001656,65850.0,65849.0,0.70389543]
[1727443162599,0.001656,65850.0,65849.0,0.70389542]
[1727443163233,0.001656,65850.0,65849.0,0.62469542]
[1727443163737,0.001656,65850.0,65849.0,1.16369542]
[1727443163987,0.001656,65850.0,65849.0,0.8661998]
[1727443163988,0.00735842,65850.0,65849.0,0.8661998]
[1727443164196,0.00735842,65850.0,65849.0,0.1661998]
[1727443164657,0.00735842,65850.0,65849.0,0.16619979]
[1727443165084,0.00735842,65850.0,65849.0,0.01433779]
[1727443165299,0.00735842,65850.0,65849.0,0.15219979]
[1727443167459,0.16264636,65850.0,65849.0,0.00033779]
[1727443167679,0.18564636,65850.0,65849.0,0.15219979]
[1727443168095,0.18564636,65850.0,65849.0,0.00033779]
[1727443170532,0.50410636,65850.0,65849.0,0.00033779]
[1727443170779,1.00132325,65850.0,65849.0,0.00033779]
[1727443172069,1.00132325,65850.0,65849.0,0.00133779]
[1727443172688,1.00132325,65850.0,65849.0,0.00233779]
[1727443173107,1.00132325,65850.0,65849.0,0.00133779]
[1727443173300,1.00132325,65850.0,65849.0,0.00233779]
[1727443173721,1.00832325,65850.0,65849.0,0.00233779]
[1727443173929,1.00832325,65850.0,65849.0,0.00133779]
[1727443174343,1.00832325,65850.0,65849.0,0.00233779]
[1727443176038,1.01832325,65850.0,65849.0,0.00233779]
[1727443176243,1.0179261,65850.0,65849.0,0.00233779]
[1727443177135,1.1179261,65850.0,65849.0,0.00233779]
[1727443177584,0.42099242,65837.0,65836.0,0.22790811]
[1727443177842,0.84456945,65837.0,65836.0,0.22790811]
[1727443178057,0.84456945,65837.0,65832.0,0.000827]
[1727443178058,0.18060142,65833.0,65832.0,0.000827]
[1727443178283,0.33588936,65833.0,65832.0,0.000827]
[1727443179673,0.34588936,65833.0,65832.0,0.002827]
[1727443180157,0.94557666,65833.0,65832.0,0.002827]
[1727443180362,0.18062442,65823.0,65822.0,0.22790811]
[1727443180570,0.174941,65815.0,65811.0,0.151949]
[1727443180774,0.33022894,65815.0,65809.0,0.303908]
[1727443181052,0.33022894,65815.0,65810.0,0.151951]
[1727443181258,0.33022894,65815.0,65809.0,0.303908]
[1727443181259,0.028,65814.0,65811.0,0.151949]
[1727443181467,0.18328794,65814.0,65811.0,0.151949]
[1727443182855,0.18328794,65814.0,65813.0,0.001828]
[1727443183881,0.33523094,65814.0,65813.0,0.001828]
[1727443184303,0.18328794,65814.0,65813.0,0.000828]
[1727443184514,0.18728794,65814.0,65813.0,0.000828]
[1727443184908,0.19328794,65814.0,65813.0,0.001828]
[1727443186213,0.19228794,65814.0,65813.0,0.153773]
[1727443186436,0.19228794,65814.0,65813.0,0.001828]
[1727443186844,0.19299036,65814.0,65813.0,0.235773]
[1727443187048,0.19259036,65814.0,65813.0,0.235773]
[1727443187261,0.19229036,65814.0,65813.0,0.235773]
[1727443187687,0.17089036,65814.0,65813.0,0.235773]
[1727443187924,0.01130242,65814.0,65813.0,0.235773]
[1727443188128,0.16089036,65814.0,65813.0,0.152773]
[1727443188334,0.16589036,65814.0,65813.0,0.152773]
[1727443188571,0.16769036,65814.0,65813.0,0.152773]
[1727443188775,0.16229036,65814.0,65813.0,0.152773]
[1727443189031,0.16089036,65814.0,65813.0,0.152773]
[1727443189278,0.16289036,65814.0,65813.0,0.152773]
[1727443189514,0.16259036,65814.0,65813.0,0.152773]
[1727443189759,0.16209036,65814.0,65813.0,0.152773]
[1727443189954,0.16189036,65814.0,65813.0,0.152773]
[1727443190362,0.16159036,65814.0,65813.0,0.152773]
[1727443190574,0.16149036,65814.0,65813.0,0.152773]
[1727443190980,0.16049036,65814.0,65813.0,0.152773]
[1727443191193,0.003,65814.0,65813.0,0.404473]
[1727443191400,0.00620242,65814.0,65813.0,0.404473]
[1727443191837,0.00520242,65814.0,65813.0,0.404473]
[1727443192041,0.00320242,65814.0,65813.0,0.404473]
[1727443192243,0.00420242,65814.0,65813.0,0.404473]
[1727443192456,0.00620242,65814.0,65813.0,0.235873]
[1727443192674,0.00320242,65814.0,65813.0,0.152773]
[1727443192898,0.00320242,65814.0,65813.0,0.154773]
[1727443193327,0.00320242,65814.0,65813.0,0.152773]
[1727443194257,0.00320242,65814.0,65813.0,0.155773]
[1727443194603,0.00320242,65814.0,65813.0,0.157773]
[1727443195407,0.00320242,65819.0,65818.0,0.151934]
[1727443195611,0.00320242,65819.0,65818.0,0.229934]
[1727443197453,0.03320242,65820.0,65819.0,0.151931]
[1727443198725,0.03320242,65820.0,65819.0,0.152931]
[1727443198926,0.00320242,65820.0,65819.0,0.152931]
[1727443201790,0.005,65838.0,65819.0,0.152931]
[1727443201791,0.00320242,65824.0,65823.0,0.151922]
[1727443202001,0.22790811,65836.0,65823.0,0.151922]
[1727443202002,0.00320242,65829.0,65828.0,0.151911]
[1727443202668,0.00320242,65830.0,65829.0,0.151908]
[1727443204101,0.00320242,65833.0,65832.0,0.151901]
[1727443205231,0.00520242,65833.0,65832.0,0.151901]
[1727443205465,0.00820242,65833.0,65832.0,0.151901]
[1727443205680,0.00520242,65833.0,65832.0,0.151901]
[1727443206316,0.001,65833.0,65832.0,0.151901]
[1727443206680,0.003,65833.0,65832.0,0.23263872]
[1727443206933,0.003,65833.0,65832.0,0.493701]
[1727443207578,0.002,65833.0,65832.0,0.493701]
[1727443207785,0.003656,65833.0,65832.0,0.494701]
[1727443207994,0.001656,65833.0,65832.0,0.494701]
[1727443208194,0.001656,65833.0,65832.0,0.493701]
[1727443208417,0.001656,65833.0,65832.0,0.496701]
[1727443208636,0.001656,65833.0,65832.0,0.503701]
[1727443208637,0.948756,65833.0,65832.0,0.503701]
[1727443208852,0.949756,65833.0,65832.0,0.513701]
[1727443209057,0.948756,65833.0,65832.0,0.503701]
[1727443209283,0.948756,65833.0,65832.0,0.493701]
[1727443209544,0.950756,65833.0,65832.0,0.52516146]
[1727443210378,0.950756,65833.0,65832.0,0.6804494]
[1727443211208,0.950756,65833.0,65832.0,0.6824494]
[1727443211840,0.950756,65833.0,65832.0,1.6638804]
[1727443212258,0.950756,65833.0,65832.0,1.1231944]
[1727443213486,0.25005512,65833.0,65832.0,1.1281944]
[1727443213732,0.25005512,65833.0,65832.0,1.13499198]
[1727443215547,0.25005512,65833.0,65832.0,1.13299198]
[1727443216586,0.25005512,65833.0,65832.0,1.13499198]
[1727443217007,0.25005512,65833.0,65832.0,1.13299198]
[1727443217221,0.25005512,65833.0,65832.0,1.02257898]
[1727443217431,0.25005512,65833.0,65832.0,0.91459298]
[1727443217849,0.25005512,65833.0,65832.0,0.91659298]
[1727443218059,0.25005512,65833.0,65832.0,0.9077954]
[1727443218474,0.25005512,65833.0,65832.0,0.90959298]
[1727443218688,0.25005512,65833.0,65832.0,0.91659298]
[1727443220206,0.25005512,65833.0,65832.0,0.70184698]
[1727443220416,0.25171112,65833.0,65832.0,1.62328298]
[1727443221086,0.25171112,65833.0,65832.0,1.34507298]
[1727443221291,0.25171112,65833.0,65832.0,0.69484698]
[1727443221716,0.25171112,65833.0,65832.0,0.6930494]
[1727443222131,0.25171112,65833.0,65832.0,0.85006198]
[1727443222596,0.25171112,65833.0,65832.0,0.53776146]
[1727443223230,0.25171112,65833.0,65832.0,0.53276146]
[1727443223454,0.25171112,65833.0,65832.0,0.36866146]
[1727443225702,0.25171112,65833.0,65832.0,0.37366146]
[1727443226635,0.25171112,65833.0,65832.0,0.36866146]
[1727443227473,0.25171112,65833.0,65832.0,0.37366146]
[1727443228117,0.25171112,65833.0,65832.0,0.37388471]
[1727443228562,0.25171112,65833.0,65832.0,0.36888471]
[1727443228763,0.25171112,65833.0,65832.0,0.37388471]
[1727443228997,0.25171112,65833.0,65832.0,0.36888471]
[1727443229418,0.25171112,65833.0,65832.0,0.37388471]
[1727443229660,0.25171112,65833.0,65832.0,0.36888471]
[1727443230088,0.25171112,65833.0,65832.0,0.29118471]
[1727443232253,0.25171112,65833.0,65832.0,0.29201271]
[1727443241890,0.25171112,65833.0,65832.0,0.29505052]
[1727443242140,0.25171112,65833.0,65832.0,0.29201271]
[1727443242379,0.25171112,65833.0,65832.0,0.69400065]
[1727443242639,0.25171112,65833.0,65832.0,1.99637865]
[1727443243202,0.25171112,65833.0,65832.0,1.6756907]
[1727443243470,0.25171112,65833.0,65832.0,0.2920127]
[1727443246601,0.25171112,65833.0,65832.0,0.28755224]
[1727443246823,0.41741112,65833.0,65832.0,0.28755224]
[1727443247034,0.41741112,65833.0,65832.0,0.18755224]
[1727443248317,0.41741112,65833.0,65832.0,0.28755224]
[1727443249558,0.25171112,65833.0,65832.0,0.28755224]
[1727443251317,0.25171112,65833.0,65832.0,0.37005224]
[1727443254188,0.25171112,65833.0,65832.0,0.3745001]
[1727443258784,0.25171112,65833.0,65832.0,0.2920001]
[1727443259001,0.25171112,65833.0,65832.0,0.1920001]
[1727443259222,0.25171112,65833.0,65832.0,0.18755224]
[1727443260520,0.25171112,65833.0,65832.0,0.28755224]
[1727443261842,0.25171112,65833.0,65832.0,0.29059015]
[1727443262083,0.25171112,65833.0,65832.0,0.36505224]
[1727443263341,0.25171112,65833.0,65832.0,0.28755224]
[1727443267712,0.40861354,65833.0,65832.0,0.03565124]
[1727443267918,0.71580048,65833.0,65832.0,0.03565124]
[1727443268135,0.73880048,65833.0,65832.0,0.03565124]
[1727443268399,1.03886567,65833.0,65832.0,0.03565124]
[1727443268623,1.12988106,65833.0,65832.0,0.03565124]
[1727443268846,1.03586567,65833.0,65832.0,0.00865124]
[1727443269306,1.03586567,65833.0,65832.0,0.01765124]
[1727443269529,1.03586567,65833.0,65832.0,0.01365124]
[1727443269745,1.04286567,65833.0,65832.0,0.00965124]
[1727443270165,0.82000048,65833.0,65832.0,0.00965124]
[1727443270380,0.8881179,65833.0,65832.0,0.00965124]
[1727443270621,0.8951179,65833.0,65832.0,0.01065124]
[1727443271474,0.82700048,65833.0,65832.0,0.01065124]
[1727443271681,0.87240212,65833.0,65832.0,0.01065124]
[1727443272135,0.82700048,65833.0,65832.0,0.01065124]
[1727443272353,0.67510148,65833.0,65832.0,0.01065124]
[1727443272557,0.67510148,65833.0,65832.0,0.16255224]
[1727443272558,0.44320148,65833.0,65832.0,0.16255224]
[1727443273411,0.44320148,65833.0,65832.0,0.01065124]
[1727443273615,0.26491354,65833.0,65832.0,0.16255224]
[1727443273816,0.26491354,65833.0,65832.0,0.00865124]
[1727443273817,0.25191354,65833.0,65832.0,0.00865124]
[1727443274031,0.26691354,65833.0,65832.0,0.01065124]
[1727443275294,0.25891354,65833.0,65832.0,0.00965124]